bitfinex/quotes_ETHUSD_20250604
["timestamp","ask_amount","ask_price","bid_price","bid_amount"]
[1749074136634,4.54976903,2616.9,2616.4,6.26]
[1749074136831,4.54976903,2616.9,2616.5,10.0]
[1749074137046,4.54976903,2616.9,2616.4,6.26]
[1749074137449,1.9056,2617.4,2615.7,1.84642654]
[1749074137450,4.54976903,2616.7,2616.5,8.239]
[1749074137671,4.54976903,2616.7,2616.6,1.635]
[1749074137849,4.54976903,2616.7,2616.6,7.895]
[1749074138170,4.54976903,2616.7,2616.5,8.239]
[1749074138312,0.55,2616.6,2616.5,8.239]
[1749074138514,0.55,2616.6,2616.5,16.134]
[1749074140315,0.55,2616.6,2616.5,9.874]
[1749074140514,1.0599769,2616.6,2616.5,16.134]
[1749074140838,1.0599769,2616.6,2616.5,9.874]
[1749074141015,4.54976903,2616.7,2616.5,16.134]
[1749074141353,1.3404,2617.8,2616.5,16.134]
[1749074141537,4.54976903,2616.9,2616.5,16.134]
[1749074142660,4.54976903,2616.9,2616.5,17.66273874]
[1749074143361,4.54976903,2616.9,2616.6,9.874]
[1749074144440,4.54976903,2616.9,2616.7,6.26]
[1749074144887,4.54976903,2617.3,2616.7,6.26]
[1749074145243,4.54976903,2617.3,2616.8,10.0]
[1749074145843,4.54976903,2617.1,2616.8,10.0]
[1749074146047,4.54976903,2617.1,2616.8,11.52855691]
[1749074146462,4.54976903,2617.1,2616.8,1.52855691]
[1749074147057,4.54976903,2617.1,2616.8,11.52855691]
[1749074147857,4.54976903,2617.1,2616.8,1.52855691]
[1749074148209,4.54976903,2617.1,2616.7,6.26]
[1749074148377,4.54976903,2617.1,2616.8,10.0]
[1749074149085,4.54976903,2617.1,2616.7,7.78861589]
[1749074149286,4.54976903,2617.1,2616.8,10.0]
[1749074151400,1.3025,2617.7,2616.8,10.0]
[1749074151401,4.54976903,2617.3,2616.8,10.0]
[1749074151705,4.54976903,2617.3,2616.9,10.0]
[1749074151900,4.54976903,2617.3,2616.9,11.52850508]
[1749074152489,4.54976903,2617.3,2616.9,1.52850508]
[1749074152704,4.54976903,2617.3,2617.0,9.872]
[1749074153008,4.54976903,2617.3,2617.1,1.633]
[1749074154077,4.54976903,2617.3,2617.2,6.258]
[1749074155281,4.54976903,2617.4,2617.2,6.258]
[1749074158704,4.54976903,2617.4,2617.3,10.0]
[1749074159100,0.55,2617.8,2617.3,10.0]
[1749074159306,4.54976903,2617.4,2617.3,10.0]
[1749074159802,4.54976903,2617.6,2617.3,10.0]
[1749074160002,4.54976903,2617.6,2617.3,11.52829133]
[1749074160580,4.54976903,2617.8,2617.4,1.52822695]
[1749074161169,4.54976903,2617.8,2617.5,1.52816024]
[1749074161798,4.54976903,2617.8,2617.3,10.0]
[1749074161799,0.02,2617.9,2617.6,15.59271]
[1749074162104,0.02,2617.9,2617.7,17.633]
[1749074162284,0.02,2617.9,2617.8,7.78500061]
[1749074163353,0.02,2617.9,2617.8,20.10971161]
[1749074163517,0.02,2617.9,2617.8,26.36734461]
[1749074164132,4.54976903,2618.5,2618.1,1.52778586]
[1749074164313,4.54976903,2618.5,2618.2,1.52776661]
[1749074164519,4.54976903,2618.5,2618.3,9.87]
[1749074164756,4.54976903,2618.5,2618.4,6.257]
[1749074165053,4.54976903,2618.6,2618.5,10.0]
[1749074166540,0.02,2618.9,2618.5,10.0]
[1749074166764,4.54976903,2618.6,2618.5,10.0]
[1749074177851,4.54976903,2618.6,2618.4,6.257]
[1749074178308,4.54976903,2618.6,2618.5,10.0]
[1749074178479,4.54976903,2618.6,2618.3,9.87]
[1749074178679,4.54976903,2618.6,2618.5,10.0]
[1749074179074,4.54976903,2618.6,2618.5,16.0]
[1749074179685,4.54976903,2618.6,2618.5,17.632]
[1749074182174,4.54976903,2618.6,2618.5,23.884]
[1749074183701,5.13780593,2618.6,2618.5,1.632]
[1749074184005,7.05280593,2618.6,2618.5,7.884]
[1749074184371,0.55,2618.5,2618.3,8.237]
[1749074184700,5.91476903,2618.4,2617.6,1.290036]
[1749074185005,4.54976903,2618.0,2617.7,16.116]
[1749074185319,4.54976903,2618.0,2617.8,16.0]
[1749074185675,4.54976903,2618.0,2617.9,23.883]
[1749074187201,4.54976903,2618.0,2617.9,17.631]
[1749074187380,4.54976903,2618.0,2617.9,23.883]
[1749074190213,5.00474593,2618.0,2617.9,1.631]
[1749074190714,0.4549769,2618.0,2617.9,1.631]
[1749074190914,1.2793,2618.1,2617.9,1.631]
[1749074191484,1.2793,2618.1,2618.0,6.252]
[1749074191683,1.8293,2618.1,2618.0,6.252]
[1749074191891,6.37906903,2618.1,2618.0,6.252]
[1749074192810,0.55,2618.0,2617.9,1.631]
[1749074193117,1.1879069,2618.0,2617.9,7.883]
[1749074193355,0.55,2618.0,2617.9,7.883]
[1749074194124,5.09976903,2618.0,2617.9,7.883]
[1749074200634,5.09976903,2618.0,2617.9,1.631]
[1749074200931,5.09976903,2618.0,2617.9,7.883]
[1749074204838,5.09976903,2618.0,2617.9,1.631]
[1749074205037,5.09976903,2618.0,2617.9,7.882]
[1749074205697,0.55,2617.8,2617.7,8.233]
[1749074205902,6.47916903,2617.8,2617.7,9.864]
[1749074206303,6.47916903,2617.8,2617.7,16.115]
[1749074208246,6.47916903,2617.8,2617.7,9.864]
[1749074208414,7.56675353,2617.8,2617.7,1.631]
[1749074208605,0.55,2617.4,2616.1,17.54896328]
[1749074208806,5.71645353,2617.8,2616.3,16.0]
[1749074208807,4.54976903,2616.7,2616.3,16.0]
[1749074209628,4.54976903,2616.7,2616.1,1.54896648]
[1749074209629,4.54976903,2616.7,2616.4,6.251]
[1749074210143,4.54976903,2616.5,2616.1,0.02]
[1749074210341,4.54976903,2616.5,2616.3,16.0]
[1749074210507,4.54976903,2616.5,2616.4,6.252]
[1749074210703,6.43146903,2616.5,2616.4,6.252]
[1749074212320,7.07461593,2616.5,2616.4,6.252]
[1749074213223,0.55,2616.4,2616.1,0.02]
[1749074213436,0.55,2616.4,2616.2,6.252]
[1749074214611,4.54976903,2616.3,2616.2,6.252]
[1749074217552,4.54976903,2616.3,2616.2,16.121]
[1749074219345,4.54976903,2616.3,2616.2,9.869]
[1749074219657,4.54976903,2616.3,2616.2,16.122]
[1749074222242,4.54976903,2616.3,2616.2,9.869]
[1749074222566,4.54976903,2616.3,2616.2,16.122]
[1749074222765,5.09976903,2616.3,2616.2,9.869]
[1749074222975,5.09976903,2616.3,2616.2,16.122]
[1749074228366,5.74291593,2616.3,2616.2,16.122]
[1749074231863,5.09976903,2616.3,2616.2,16.122]
[1749074232739,5.88146903,2616.5,2616.2,16.122]
[1749074233077,0.55,2616.4,2616.2,16.122]
[1749074235880,0.55,2616.4,2616.3,9.871]
[1749074237057,0.55,2616.4,2616.3,16.123]
[1749074242567,1.1848569,2616.4,2616.3,16.123]
[1749074243549,1.1848569,2616.4,2616.3,9.871]
[1749074243749,1.1848569,2616.4,2616.3,16.122]
[1749074244351,2.5358569,2616.4,2616.3,16.122]
[1749074245873,2.5358569,2616.4,2616.3,9.871]
[1749074246198,2.5358569,2616.4,2616.3,16.122]
[1749074246400,2.5358569,2616.4,2616.3,9.871]
[1749074246699,2.5358569,2616.4,2616.3,16.122]
[1749074248064,6.45076903,2616.4,2616.3,16.122]
[1749074251991,6.45076903,2616.4,2616.3,9.87]
[1749074253088,6.45076903,2616.4,2616.3,16.121]
[1749074253588,6.45076903,2616.4,2616.3,9.87]
[1749074253791,6.45076903,2616.4,2616.3,16.12]
[1749074254095,7.09584593,2616.4,2616.3,16.12]
[1749074254812,7.09584593,2616.4,2616.3,9.87]
[1749074255029,7.09584593,2616.4,2616.3,16.12]
[1749074255317,7.09584593,2616.4,2615.3,1.52944033]
[1749074255505,4.54976903,2616.0,2615.2,1.52949192]
[1749074255680,4.54976903,2616.0,2615.3,1.52944326]
[1749074256302,4.54976903,2616.0,2615.4,6.25]
[1749074256519,4.54976903,2616.0,2615.5,10.0]
[1749074257501,4.54976903,2616.0,2615.6,9.87]
[1749074258492,4.54976903,2616.0,2615.7,6.25]
[1749074261529,4.54976903,2616.0,2615.8,1.629]
[1749074264932,5.09976903,2616.0,2615.9,6.249]
[1749074266110,0.55,2615.9,2615.8,1.629]
[1749074266439,0.55,2615.9,2615.8,16.12]
[1749074267342,4.54976903,2617.0,2615.8,17.64916108]
[1749074267343,5.89466903,2616.5,2615.8,17.64916108]
[1749074267505,0.55,2616.4,2615.8,17.64916108]
[1749074269003,4.54976903,2616.3,2615.8,17.64916108]
[1749074269806,4.54976903,2616.3,2615.8,16.12]
[1749074274645,4.54976903,2616.3,2615.9,0.1404]
[1749074276444,4.54976903,2616.3,2616.0,1.626]
[1749074276749,4.54976903,2616.3,2616.0,9.867]
[1749074277712,4.54976903,2616.3,2616.1,6.248]
[1749074278421,4.54976903,2616.3,2616.0,9.867]
[1749074278623,4.54976903,2616.1,2616.0,8.241]
[1749074278823,4.54976903,2616.1,2616.0,16.114]
[1749074279936,5.09976903,2616.1,2616.0,9.867]
[1749074280136,6.98029262,2616.1,2616.0,16.114]
[1749074281118,6.98029262,2616.1,2616.0,9.867]
[1749074281318,6.98029262,2616.1,2616.0,16.114]
[1749074281952,2.43052359,2616.1,2616.0,9.867]
[1749074282121,6.46086903,2616.1,2616.0,16.114]
[1749074287298,6.46086903,2616.1,2616.0,9.868]
[1749074287488,1.9111,2616.1,2616.0,9.868]
[1749074287786,6.46086903,2616.1,2616.0,9.868]
[1749074288386,6.46086903,2616.1,2616.0,16.114]
[1749074288602,7.10695593,2616.1,2616.0,16.114]
[1749074288972,5.74585593,2616.1,2616.0,16.114]
[1749074289174,1.1960869,2616.1,2616.0,16.114]
[1749074289507,5.09976903,2616.1,2616.0,8.242]
[1749074289673,5.09976903,2616.1,2616.0,16.114]
[1749074290809,4.99976903,2616.1,2616.0,16.114]
[1749074295708,10.96233806,2616.1,2616.0,9.868]
[1749074295892,7.50880284,2616.1,2616.0,16.113]
[1749074296411,7.50880284,2616.1,2616.0,9.868]
[1749074296723,7.50880284,2616.1,2616.0,16.113]
[1749074297808,12.05857187,2616.1,2616.0,9.868]
[1749074298033,12.05857187,2616.1,2616.0,16.113]
[1749074298236,12.05857187,2616.1,2616.0,9.868]
[1749074298448,12.05857187,2616.1,2616.0,16.113]
[1749074299670,12.05857187,2616.1,2616.0,9.868]
[1749074299831,12.05857187,2616.1,2616.0,16.113]
[1749074300226,12.05857187,2616.1,2616.0,9.868]
[1749074300477,1.8722,2615.9,2615.8,8.243]
[1749074300631,7.68376622,2615.9,2615.8,16.115]
[1749074301032,7.68376622,2615.9,2615.8,9.87]
[1749074301345,7.68376622,2615.9,2615.8,16.115]
[1749074301952,7.68376622,2615.9,2615.8,9.87]
[1749074302254,7.68376622,2615.9,2615.8,16.115]
[1749074303176,7.68376622,2615.9,2615.8,9.87]
[1749074306995,0.55,2615.6,2614.3,1.14749969]
[1749074307293,4.54976903,2614.8,2614.4,6.245]
[1749074307498,4.54976903,2614.8,2614.5,25.868]
[1749074308300,4.54976903,2614.8,2614.6,6.245]
[1749074310098,4.54976903,2614.8,2614.7,22.245]
[1749074310598,4.54976903,2614.8,2614.7,6.245]
[1749074313265,4.54976903,2614.8,2614.6,16.0]
[1749074313467,4.54976903,2614.8,2614.7,6.245]
[1749074316883,5.09976903,2614.8,2614.6,16.0]
[1749074317088,5.09976903,2614.8,2614.7,6.245]
[1749074319039,1.3071,2615.3,2614.7,6.245]
[1749074319236,4.54976903,2615.4,2614.7,6.245]
[1749074319401,4.54976903,2615.4,2614.9,16.0]
[1749074319606,0.55,2615.3,2614.9,16.0]
[1749074319814,0.55,2615.3,2614.8,10.0]
[1749074319815,4.54976903,2615.4,2614.7,7.39234293]
[1749074320219,4.54976903,2615.4,2614.7,6.245]
[1749074320560,4.54976903,2615.6,2614.7,6.245]
[1749074320935,4.54976903,2615.6,2614.9,16.0]
[1749074321100,0.55,2615.5,2614.9,10.0]
[1749074321303,4.54976903,2615.6,2614.9,16.0]
[1749074321504,0.55,2615.5,2614.9,16.0]
[1749074322739,4.54976903,2615.4,2614.9,16.0]
[1749074322945,4.54976903,2615.4,2615.0,1.14721277]
[1749074323103,0.55,2615.9,2615.1,18.77217153]
[1749074323306,4.54976903,2615.7,2615.1,17.625]
[1749074324743,4.54976903,2615.7,2615.1,18.77217504]
[1749074326017,4.54976903,2615.7,2615.1,1.625]
[1749074326231,4.54976903,2615.7,2615.1,18.77216384]
[1749074326436,4.54976903,2615.7,2615.2,16.0]
[1749074326750,4.54976903,2615.7,2615.3,6.243]
[1749074327648,4.54976903,2615.9,2615.3,6.243]
[1749074329648,4.54976903,2616.1,2615.7,16.0]
[1749074329848,4.54976903,2616.1,2615.8,9.868]
[1749074331349,1.3159,2616.4,2615.8,9.868]
[1749074331550,5.90906903,2616.8,2616.0,1.14678425]
[1749074331723,4.54976903,2616.8,2616.2,16.0]
[1749074333246,0.02,2616.9,2616.2,16.0]
[1749074333449,4.54976903,2616.8,2616.2,16.0]
[1749074333779,0.02,2616.9,2616.5,1.1465312]
[1749074333932,0.02,2616.9,2616.6,1.622]
[1749074334134,0.02,2616.9,2616.6,2.76852261]
[1749074334334,0.02,2616.9,2616.6,17.622]
[1749074334535,0.02,2616.9,2616.6,18.76851934]
[1749074334733,0.02,2616.9,2616.6,17.622]
[1749074334934,0.02,2616.9,2616.6,18.76851327]
[1749074335238,0.02,2616.9,2616.6,18.76850544]
[1749074335469,0.02,2616.9,2616.6,17.622]
[1749074338250,0.02,2616.9,2616.8,26.0]
[1749074338438,0.02,2616.9,2616.8,22.239]
[1749074340558,0.02,2616.9,2616.8,6.239]
[1749074341777,0.02,2616.9,2616.6,1.622]
[1749074341970,0.02,2616.9,2616.8,6.238]
[1749074342358,0.02,2616.9,2616.6,1.622]
[1749074342687,4.56976903,2616.9,2616.7,6.238]
[1749074344683,5.16862593,2616.9,2616.6,1.622]
[1749074344885,5.16862593,2616.9,2616.8,6.237]
[1749074345098,0.6188569,2616.9,2616.8,6.237]
[1749074345296,0.6188569,2616.9,2616.6,1.622]
[1749074345297,4.56976903,2616.9,2616.6,1.622]
[1749074345523,4.54976903,2616.7,2616.6,1.622]
[1749074345853,4.54976903,2616.7,2616.6,7.859]
[1749074346289,4.54976903,2616.7,2616.6,1.622]
[1749074346485,5.00674593,2616.7,2616.6,7.859]
[1749074346689,5.00674593,2616.7,2615.8,8.244]
[1749074346690,0.55,2616.5,2615.8,8.244]
[1749074347001,4.54976903,2616.2,2615.9,7.858]
[1749074347196,4.54976903,2616.2,2615.9,1.621]
[1749074347403,5.09976903,2616.0,2615.9,1.621]
[1749074347591,5.09976903,2616.0,2615.9,7.858]
[1749074347789,5.09976903,2616.0,2615.9,9.861]
[1749074349010,5.09976903,2616.0,2615.9,16.098]
[1749074349311,5.09976903,2616.0,2615.9,9.861]
[1749074349464,5.78933362,2616.0,2615.9,16.098]
[1749074351277,5.78933362,2616.0,2615.9,9.861]
[1749074351479,7.20613362,2616.0,2615.9,16.098]
[1749074352901,11.75590265,2616.0,2615.9,9.861]
[1749074353875,0.55,2615.9,2614.1,0.02]
[1749074354076,5.95126903,2615.1,2614.2,6.238]
[1749074354389,0.55,2615.0,2614.1,0.02]
[1749074354587,4.54976903,2614.9,2614.1,0.02]
[1749074355020,4.54976903,2614.9,2614.2,6.238]
[1749074355321,4.54976903,2614.9,2614.3,16.0]
[1749074355822,4.54976903,2614.9,2614.4,6.238]
[1749074356026,4.54976903,2614.9,2614.5,16.0]
[1749074357505,4.54976903,2614.9,2614.6,9.865]
[1749074357706,4.54976903,2614.9,2614.7,6.238]
[1749074357901,4.54976903,2614.9,2614.6,9.865]
[1749074358133,4.54976903,2614.7,2614.6,9.865]
[1749074358337,4.54976903,2614.7,2614.6,16.103]
[1749074358945,5.84006903,2614.7,2614.6,8.243]
[1749074359241,5.84006903,2614.7,2614.6,16.103]
[1749074360022,6.39006903,2614.7,2614.6,9.865]
[1749074360229,7.03908862,2614.7,2614.6,14.483]
[1749074360405,7.03908862,2614.7,2614.6,16.105]
[1749074362204,0.6501269,2614.9,2614.6,16.105]
[1749074362404,5.84506903,2615.0,2614.6,16.105]
[1749074363070,0.55,2614.9,2614.6,16.105]
[1749074363223,5.84506903,2615.0,2614.6,16.105]
[1749074363631,0.55,2614.9,2614.6,16.105]
[1749074368047,0.55,2615.0,2614.6,16.105]
[1749074369465,0.55,2615.0,2614.7,9.866]
[1749074369646,0.55,2615.0,2614.8,1.621]
[1749074370049,5.09976903,2614.9,2614.8,1.621]
[1749074370677,6.50856903,2614.9,2614.8,7.86]
[1749074371880,5.09976903,2614.9,2614.8,7.86]
[1749074372978,4.54976903,2615.1,2614.8,7.86]
[1749074373146,4.54976903,2615.2,2614.8,7.86]
[1749074373579,0.55,2615.4,2614.8,7.86]
[1749074373580,4.54976903,2615.4,2614.8,7.86]
[1749074374244,4.54976903,2615.4,2614.9,16.0]
[1749074383961,4.54976903,2615.2,2614.8,17.621]
[1749074384162,4.54976903,2615.2,2615.0,6.238]
[1749074388317,4.54976903,2615.2,2614.8,17.621]
[1749074388513,4.54976903,2615.2,2615.0,16.0]
[1749074389361,4.54976903,2615.2,2615.1,6.237]
[1749074391002,4.54976903,2615.2,2615.1,14.481]
[1749074396712,4.54976903,2615.2,2615.1,9.865]
[1749074397720,4.54976903,2615.2,2615.1,16.102]
[1749074399120,0.55,2615.4,2615.1,16.102]
[1749074399816,4.54976903,2615.5,2615.1,16.102]
[1749074399992,4.54976903,2615.5,2615.1,16.1712]
[1749074400598,5.14189593,2615.5,2615.1,9.865]
[1749074400914,5.14189593,2615.5,2615.2,6.236]
[1749074401107,4.54976903,2615.3,2615.2,6.236]
[1749074402022,5.09976903,2615.3,2615.1,9.865]
[1749074402228,1.0599769,2615.2,2615.1,9.865]
[1749074402522,6.94674593,2615.2,2615.1,16.1]
[1749074403126,2.3969769,2615.2,2615.1,9.864]
[1749074403287,6.94674593,2615.2,2615.1,16.1]
[1749074403797,2.3969769,2615.2,2615.1,16.1]
[1749074404017,6.43676903,2615.2,2615.1,16.1]
[1749074405649,10.98653806,2615.2,2615.1,9.864]
[1749074406051,9.09953806,2615.2,2615.1,1.619]
[1749074406208,0.55,2615.1,2613.9,0.0692]
[1749074406404,0.55,2614.0,2613.6,0.0692]
[1749074406603,4.54976903,2613.7,2613.6,0.0692]
[1749074406845,4.54976903,2613.7,2613.6,6.236]
[1749074407344,0.55,2613.6,2612.6,0.0692]
[1749074407547,4.54976903,2613.5,2612.8,16.0]
[1749074407750,4.54976903,2613.5,2613.1,16.0]
[1749074407905,1.4177,2613.9,2612.9,0.0692]
[1749074408110,4.54976903,2614.0,2613.1,0.0692]
[1749074408430,4.54976903,2614.0,2613.3,0.0692]
[1749074408630,4.54976903,2614.0,2613.5,16.0]
[1749074408943,1.4177,2614.3,2613.5,16.0]
[1749074409145,0.4549769,2614.9,2613.9,0.0692]
[1749074409146,1.3981,2614.8,2613.9,0.0692]
[1749074409349,4.54976903,2614.6,2614.0,16.102]
[1749074410113,4.54976903,2614.8,2614.2,0.0692]
[1749074410626,4.54976903,2614.6,2614.2,0.0692]
[1749074411459,0.55,2614.6,2614.3,6.237]
[1749074411842,9.47789193,2614.7,2614.3,6.237]
[1749074412236,0.55,2614.6,2614.3,6.237]
[1749074412608,9.47789193,2615.0,2614.3,6.237]
[1749074412809,0.55,2614.9,2614.3,6.237]
[1749074413819,0.55,2614.6,2614.3,6.237]
[1749074415364,0.55,2615.0,2614.3,6.237]
[1749074415566,9.47789193,2614.8,2614.3,6.237]
[1749074416064,9.47789193,2614.8,2614.4,16.0]
[1749074416647,9.47789193,2615.1,2614.5,0.0692]
[1749074416853,9.47789193,2615.1,2614.6,1.619]
[1749074417652,0.55,2615.2,2614.6,1.619]
[1749074417849,10.02789193,2615.2,2614.6,1.619]
[1749074420543,0.55,2615.2,2614.6,1.619]
[1749074420889,9.47789193,2615.3,2614.7,0.0692]
[1749074421043,9.47789193,2615.3,2614.9,16.0]
[1749074423091,9.47789193,2615.3,2615.0,0.0692]
[1749074424673,0.55,2615.2,2615.1,7.855]
[1749074424878,11.17628112,2615.2,2614.1,8.91966709]
[1749074425069,9.47789193,2614.8,2614.2,1.619]
[1749074426254,9.47789193,2614.8,2614.3,6.236]
[1749074427151,9.47789193,2614.8,2614.4,6.236]
[1749074427340,9.47789193,2614.8,2614.2,1.619]
[1749074427547,9.47789193,2614.8,2614.3,6.236]
[1749074431260,4.55609259,2614.6,2614.3,6.236]
[1749074434259,4.55609259,2614.4,2614.1,16.0]
[1749074434558,4.55609259,2614.3,2614.2,1.618]
[1749074434752,4.55609259,2614.3,2614.2,7.854]
[1749074434954,4.55609259,2614.3,2614.2,1.618]
[1749074435154,4.55609259,2614.3,2614.2,7.854]
[1749074435356,5.01170185,2614.3,2614.2,7.854]
[1749074435766,5.01170185,2614.3,2614.2,9.864]
[1749074436163,6.87020185,2614.3,2614.2,9.864]
[1749074436666,11.42629444,2614.3,2614.2,9.864]
[1749074436990,1.9802,2614.1,2612.3,30.0]
[1749074437191,9.56779444,2614.3,2612.5,12.32257]
[1749074437192,9.48551038,2613.6,2612.5,12.32257]
[1749074437493,9.48551038,2613.6,2612.8,10.0]
[1749074437494,10.91571038,2613.6,2612.8,10.0]
[1749074437697,10.91571038,2613.6,2612.9,7.854]
[1749074438007,10.91571038,2613.6,2612.9,1.618]
[1749074438174,10.91571038,2613.6,2613.0,6.237]
[1749074439458,10.92221038,2613.9,2613.0,6.237]
[1749074439664,9.48551038,2613.9,2613.0,6.237]
[1749074440358,9.48551038,2613.9,2613.0,16.237]
[1749074440597,9.48551038,2613.9,2613.2,10.0]
[1749074440802,10.57773142,2613.9,2613.2,10.0]
[1749074441282,10.57773142,2613.9,2613.1,10.0]
[1749074441601,9.48551038,2613.6,2612.9,1.618]
[1749074441806,10.81281038,2613.6,2613.2,6.237]
[1749074444694,1.9304,2613.8,2613.2,6.237]
[1749074445505,9.48551038,2613.9,2613.2,6.237]
[1749074445966,1.3117,2614.3,2613.4,10.0]
[1749074446167,0.55,2614.2,2613.5,1.619]
[1749074446363,10.79721038,2614.3,2613.5,1.619]
[1749074446799,0.55,2614.2,2613.5,1.619]
[1749074447100,10.79721038,2614.3,2613.5,1.619]
[1749074447299,0.55,2614.2,2613.5,1.619]
[1749074449280,10.79721038,2614.3,2613.5,1.619]
[1749074451000,9.48551038,2614.0,2613.7,16.0]
[1749074451700,9.48551038,2614.0,2613.8,6.237]
[1749074452710,9.48551038,2614.0,2613.9,8.249]
[1749074456307,9.48551038,2614.0,2613.9,14.486]
[1749074459279,4.55903223,2614.0,2613.9,14.486]
[1749074461203,1.3886,2614.5,2613.9,14.6198]
[1749074461417,4.55903223,2614.3,2613.9,14.6198]
[1749074461581,4.55903223,2614.7,2614.1,0.1338]
[1749074461777,4.55903223,2614.5,2614.2,1.618]
[1749074462219,4.55903223,2614.3,2614.1,0.1338]
[1749074462433,4.55903223,2614.3,2614.2,7.855]
[1749074463982,1.9165,2614.2,2614.0,16.0]
[1749074464133,4.55903223,2614.1,2613.9,8.249]
[1749074464311,5.10903223,2614.1,2614.0,7.855]
[1749074464783,4.55903223,2614.1,2614.0,7.855]
[1749074464988,0.55,2614.5,2614.0,23.9888]
[1749074465188,4.55903223,2614.4,2614.0,23.9888]
[1749074466323,4.55903223,2614.4,2614.1,16.0]
[1749074466527,4.55903223,2614.4,2614.0,7.9888]
[1749074466731,1.3948,2614.8,2614.1,16.0]
[1749074467031,4.18677083,2614.5,2614.1,16.0]
[1749074467397,4.18677083,2614.5,2614.2,0.35451377]
[1749074467616,4.18677083,2614.5,2614.3,0.35451359]
[1749074467828,4.18677083,2614.5,2614.4,0.35451359]
[1749074468038,4.18677083,2614.5,2614.1,16.0]
[1749074468514,6.47303223,2615.0,2614.1,16.0]
[1749074468515,4.55903223,2614.3,2614.1,16.0]
[1749074469401,4.55903223,2614.7,2614.1,16.0]
[1749074469702,4.55903223,2614.7,2614.1,16.1338]
[1749074470105,4.55903223,2614.7,2614.1,0.1338]
[1749074470308,4.55903223,2614.7,2614.1,16.1338]
[1749074470605,4.55903223,2614.7,2614.2,0.24286717]
[1749074470812,4.55903223,2614.7,2614.1,16.1338]
[1749074471343,4.55903223,2614.7,2614.3,0.1338]
[1749074472849,1.4883,2615.8,2614.3,16.1338]
[1749074473054,4.55903223,2615.1,2614.5,0.1338]
[1749074473347,4.55903223,2615.3,2614.6,14.523574]
[1749074473547,4.55903223,2615.3,2614.5,0.1338]
[1749074473548,4.55903223,2615.5,2614.9,2.7847]
[1749074473747,4.55903223,2615.5,2615.0,7.9878]
[1749074473907,4.55903223,2615.5,2615.1,7.853]
[1749074476421,4.55903223,2615.5,2615.2,16.0]
[1749074478347,4.55903223,2615.7,2615.3,0.1338]
[1749074478557,0.02,2615.9,2615.3,0.1338]
[1749074478847,0.02,2615.9,2615.7,16.0]
[1749074479052,0.02,2615.9,2615.8,32.2318]
[1749074479552,0.02,2615.9,2615.8,25.864]
[1749074479712,0.57,2615.9,2615.8,9.863]
[1749074479913,1.9651,2615.9,2615.8,9.863]
[1749074480139,3.07341645,2615.9,2615.8,16.096]
[1749074481857,6.52413223,2615.9,2615.8,16.096]
[1749074482869,4.57903223,2615.9,2615.8,32.096]
[1749074483074,0.02,2615.9,2615.8,32.096]
[1749074484052,0.02,2615.9,2615.8,32.2298]
[1749074486238,0.02,2615.9,2615.8,32.096]
[1749074486642,0.02,2615.9,2615.8,9.863]
[1749074486845,0.02,2615.9,2615.8,16.095]
[1749074488055,0.02,2615.9,2615.8,32.095]
[1749074489781,0.02,2615.9,2615.8,69.69024528]
[1749074489983,0.02,2615.9,2615.8,70.40960436]
[1749074490173,0.02,2615.9,2615.8,63.46628448]
[1749074490368,0.55,2617.4,2616.1,0.1037]
[1749074490684,8.40331988,2617.5,2616.3,0.1037]
[1749074490980,8.40331988,2617.5,2616.6,10.1037]
[1749074491178,8.40331988,2617.5,2616.7,2.330646]
[1749074491354,0.55,2617.4,2616.7,2.330646]
[1749074491559,8.40331988,2617.5,2616.7,2.330646]
[1749074491879,8.34011988,2617.8,2616.7,2.330646]
[1749074492090,8.34011988,2617.8,2616.8,0.1037]
[1749074492396,1.3968,2617.1,2616.8,7.893]
[1749074493379,6.96331988,2616.9,2616.8,7.893]
[1749074493566,6.96331988,2616.9,2616.8,1.618]
[1749074493885,6.96331988,2616.9,2616.8,7.897]
[1749074494086,0.02,2616.9,2616.8,23.897]
[1749074494998,0.02,2616.9,2616.8,24.0007]
[1749074496871,0.02,2616.9,2616.8,26.159146]
[1749074500592,0.02,2616.9,2616.8,0.1037]
[1749074500912,0.02,2616.9,2616.8,1.617]
[1749074501109,2.04983199,2616.9,2616.8,7.899]
[1749074501590,1.3535,2616.9,2616.8,7.899]
[1749074501792,1.3535,2616.9,2616.8,7.903]
[1749074502291,1.9035,2616.9,2616.8,7.904]
[1749074502456,1.9035,2616.9,2616.8,1.617]
[1749074502657,1.9035,2616.9,2616.8,7.904]
[1749074502995,2.78818199,2616.9,2616.8,7.904]
[1749074503206,2.78818199,2616.9,2616.8,1.617]
[1749074503409,0.55,2616.8,2616.7,6.286]
[1749074503617,0.55,2616.8,2616.7,7.903]
[1749074504268,0.55,2616.8,2616.7,1.617]
[1749074504464,2.97745019,2616.8,2616.7,1.617]
[1749074505359,0.55,2616.6,2615.3,0.1037]
[1749074505560,1.3711,2615.8,2615.3,0.1037]
[1749074505779,1.3711,2615.8,2615.5,16.0]
[1749074506794,6.94331988,2616.5,2615.6,2.291427]
[1749074506964,6.94331988,2616.5,2615.6,16.0]
[1749074507174,6.94331988,2616.5,2615.5,16.0]
[1749074507473,6.94331988,2616.5,2615.6,9.858]